bitfinex/quotes_BTCUSD_20250519
["timestamp","ask_amount","ask_price","bid_price","bid_amount"]
[1747618301199,1.37220064,105030.0,105020.0,0.00304809]
[1747618301403,1.27689124,105030.0,105020.0,0.00304809]
[1747618301871,1.37689124,105030.0,105020.0,0.00304809]
[1747618302078,1.27689124,105030.0,105020.0,0.00304809]
[1747618302283,1.29579124,105030.0,105020.0,0.00204809]
[1747618302490,6.33579124,105030.0,105020.0,0.00204809]
[1747618302704,6.43210064,105030.0,105020.0,0.00204809]
[1747618303119,6.53910064,105030.0,105020.0,0.00304809]
[1747618303324,0.23404406,105010.0,105000.0,0.002]
[1747618303682,1.32583114,105010.0,105000.0,0.00214467]
[1747618304685,1.32883114,105010.0,105000.0,0.00214467]
[1747618305500,1.16979346,105010.0,105000.0,0.00214467]
[1747618305807,1.49529261,105010.0,105000.0,0.04084467]
[1747618306007,1.50983346,105010.0,105000.0,0.04084467]
[1747618306344,1.50983346,105010.0,105000.0,0.00214467]
[1747618306345,1.88647114,105010.0,105000.0,0.00214467]
[1747618306553,1.98378054,105010.0,105000.0,0.00214467]
[1747618307213,1.88647114,105010.0,105000.0,0.00214467]
[1747618307421,1.50977046,105010.0,105000.0,0.00214467]
[1747618307638,1.27862961,105010.0,105000.0,0.04094467]
[1747618307853,1.49518961,105010.0,105000.0,0.04094467]
[1747618308067,1.50973046,105010.0,105000.0,0.04094467]
[1747618308272,0.93862961,105010.0,105000.0,0.04094467]
[1747618308485,1.15518961,105010.0,105000.0,0.04094467]
[1747618309596,1.15118961,105010.0,105000.0,0.04094467]
[1747618310009,1.15118961,105010.0,105000.0,0.04394467]
[1747618311091,1.15118961,105010.0,105000.0,0.04494467]
[1747618311971,0.93462961,105010.0,105000.0,0.04494467]
[1747618312200,1.15114961,105010.0,105000.0,0.04494467]
[1747618312727,1.53232814,105010.0,105000.0,0.02504467]
[1747618312986,1.87232814,105010.0,105000.0,0.00614467]
[1747618313661,1.50569046,105010.0,105000.0,0.00314467]
[1747618313840,1.87232814,105010.0,105000.0,0.00314467]
[1747618314441,1.87232814,105010.0,105000.0,0.00214467]
[1747618314810,1.87532814,105010.0,105000.0,0.00214467]
[1747618315014,1.87532814,105010.0,105000.0,0.00314467]
[1747618315214,1.50869046,105010.0,105000.0,0.00314467]
[1747618315456,1.87532814,105010.0,105000.0,0.00214467]
[1747618315810,1.87632814,105010.0,105000.0,0.00214467]
[1747618316254,1.50969046,105010.0,105000.0,0.00214467]
[1747618317137,1.50969046,105010.0,105000.0,0.02044467]
[1747618317710,1.50969046,105010.0,105000.0,0.00214467]
[1747618319088,1.27862961,105010.0,105000.0,0.03944467]
[1747618319311,0.93866961,105010.0,105000.0,0.03944467]
[1747618322285,0.93866961,105010.0,105000.0,0.04527877]
[1747618326137,0.01904987,104980.0,104970.0,0.20005627]
[1747618326465,0.20001886,104990.0,104970.0,0.30737407]
[1747618326687,0.21906702,104990.0,104980.0,0.21908861]
[1747618326914,0.22859164,104990.0,104980.0,0.2190887]
[1747618327158,0.20954258,104990.0,104980.0,0.22861368]
[1747618327377,0.00952417,104990.0,104980.0,0.31739737]
[1747618327837,0.21664,105000.0,104990.0,0.22859155]
[1747618328065,0.21664,105000.0,104990.0,0.32590095]
[1747618328290,0.23568652,105000.0,104990.0,0.66590095]
[1747618328525,0.22616317,105000.0,104990.0,0.66590095]
[1747618328756,0.23568652,105000.0,104990.0,0.66590095]
[1747618329203,0.002,105010.0,105000.0,0.59944651]
[1747618329415,0.002,105030.0,105020.0,0.5601048]
[1747618329625,0.002,105030.0,105020.0,0.8737342]
[1747618329869,0.002,105030.0,105020.0,0.67195505]
[1747618330078,0.03056162,105030.0,105020.0,0.6574142]
[1747618330279,0.22098403,105030.0,105020.0,0.4669684]
[1747618330487,0.21146349,105030.0,105020.0,0.0204]
[1747618330695,0.21160802,105030.0,105020.0,0.0204]
[1747618331561,0.21260802,105030.0,105020.0,0.0264]
[1747618331998,0.21260802,105030.0,105020.0,0.0294]
[1747618333481,0.21260802,105030.0,105020.0,0.04379359]
[1747618334908,0.52611742,105030.0,105020.0,0.0294]
[1747618335142,0.52611742,105030.0,105020.0,0.0101]
[1747618336874,0.52611742,105030.0,105020.0,0.009]
[1747618337792,0.52611742,105030.0,105020.0,0.0469]
[1747618338436,0.42780802,105030.0,105020.0,0.04371808]
[1747618338675,0.52611742,105030.0,105020.0,0.02931808]
[1747618338876,0.52611742,105030.0,105020.0,0.03031808]
[1747618340035,1.08227742,105030.0,105020.0,0.01081808]
[1747618340250,1.10197742,105030.0,105020.0,0.01081808]
[1747618340683,1.08227742,105030.0,105020.0,0.01081808]
[1747618341893,1.08227742,105030.0,105020.0,0.005]
[1747618342407,1.12227742,105030.0,105020.0,0.005]
[1747618342609,1.13681827,105030.0,105020.0,0.005]
[1747618343226,1.1470805,105030.0,105020.0,0.005]
[1747618344460,0.87637965,105030.0,105020.0,0.005]
[1747618344739,0.74219742,105030.0,105020.0,0.005]
[1747618345498,0.30991742,105030.0,105020.0,0.0431]
[1747618345734,0.52611742,105030.0,105020.0,0.0431]
[1747618345947,0.42880802,105030.0,105020.0,0.2430619]
[1747618346126,0.41928721,105030.0,105020.0,0.0489219]
[1747618346607,0.41928721,105030.0,105020.0,0.25840552]
[1747618346812,0.40976631,105030.0,105020.0,0.24888371]
[1747618347017,0.40976631,105030.0,105020.0,0.05844389]
[1747618347427,0.40976631,105030.0,105020.0,0.06860481]
[1747618347675,0.24790642,105030.0,105020.0,0.28760961]
[1747618347880,0.43832883,105030.0,105020.0,0.06860481]
[1747618348094,0.4288082,105030.0,105020.0,0.05908282]
[1747618348909,0.4288082,105030.0,105020.0,0.03988282]
[1747618349094,0.4288082,105030.0,105020.0,0.0108219]
[1747618349441,0.4288082,105030.0,105020.0,0.0490219]
[1747618350349,0.4288082,105030.0,105020.0,0.05918825]
[1747618350516,0.5261176,105030.0,105020.0,0.0108219]
[1747618352377,0.5261176,105030.0,105020.0,0.0504219]
[1747618352593,0.4288082,105030.0,105020.0,0.0504219]
[1747618359172,0.22212928,105030.0,105020.0,0.25038362]
[1747618359594,0.22212928,105030.0,105020.0,0.26010819]
[1747618360369,0.21260838,105030.0,105020.0,0.26010819]
[1747618361184,0.21260838,105030.0,105020.0,0.26962991]
[1747618361398,0.01266498,105030.0,105020.0,0.26962991]
[1747618361636,0.03170651,105030.0,105020.0,0.2886729]
[1747618362017,0.0412275,105030.0,105020.0,0.2886729]
[1747618362424,0.0412275,105030.0,105020.0,0.27894833]
[1747618363888,0.03170651,105030.0,105020.0,0.27894833]
[1747618364606,0.0412275,105030.0,105020.0,0.27894833]
[1747618364847,0.02218561,105030.0,105020.0,0.27894833]
[1747618365064,0.00314453,105030.0,105020.0,0.94659858]
[1747618366165,0.00314453,105030.0,105020.0,0.97327993]
[1747618366381,0.03807862,105040.0,105030.0,0.55898394]
[1747618366626,0.03807862,105040.0,105030.0,0.69509334]
[1747618367436,0.01051936,105040.0,105030.0,0.70391524]
[1747618367884,0.02003881,105040.0,105030.0,0.70391524]
[1747618368097,0.04859816,105040.0,105030.0,0.70391524]
[1747618368303,0.04759816,105040.0,105030.0,0.70091524]
[1747618368681,0.04859816,105040.0,105030.0,0.70591524]
[1747618368885,0.04859807,105040.0,105030.0,0.70691524]
[1747618369100,0.03907816,105040.0,105030.0,0.70691524]
[1747618370132,0.03807816,105040.0,105030.0,0.70191524]
[1747618370344,0.04007636,105050.0,105040.0,0.25866337]
[1747618370582,0.23046189,105050.0,105040.0,0.25866346]
[1747618371008,0.03055646,105050.0,105040.0,0.268183]
[1747618371638,0.03155646,105050.0,105040.0,0.271183]
[1747618371902,0.02203737,105050.0,105040.0,0.271183]
[1747618372109,0.003,105050.0,105040.0,0.7084924]
[1747618372317,0.003,105050.0,105040.0,0.79303325]
[1747618372521,0.002,105050.0,105040.0,0.79885515]
[1747618372738,0.002,105050.0,105040.0,0.79985515]
[1747618373181,0.002,105050.0,105040.0,0.79585515]
[1747618373360,0.0305513,105070.0,105060.0,0.2579214]
[1747618373361,0.01151664,105070.0,105060.0,0.2579214]
[1747618373601,0.0211782,105070.0,105060.0,0.5979214]
[1747618373822,0.03069521,105070.0,105060.0,0.5979214]
[1747618374007,0.0402124,105070.0,105060.0,0.5979214]
[1747618374540,0.00214464,105070.0,105060.0,0.7010527]
[1747618374984,0.01166137,105070.0,105060.0,0.7040527]
[1747618375219,0.00314464,105070.0,105060.0,0.72427593]
[1747618375459,0.01266128,105070.0,105060.0,0.72427593]
[1747618375655,0.00314464,105070.0,105060.0,0.72427593]
[1747618376012,0.02217848,105070.0,105060.0,0.72427593]
[1747618376221,0.01266147,105070.0,105060.0,0.72427593]
[1747618378160,0.00314464,105070.0,105060.0,0.72427593]
[1747618378366,0.01266137,105070.0,105060.0,0.72427593]
[1747618379006,0.02217829,105070.0,105060.0,0.72427593]
[1747618379447,0.01266137,105070.0,105060.0,0.72427593]
[1747618379976,0.0221782,105070.0,105060.0,0.72427593]
[1747618380227,0.01266137,105070.0,105060.0,0.72427593]
[1747618380909,0.00314464,105070.0,105060.0,0.72427593]
[1747618381366,0.03169566,105070.0,105060.0,0.72427593]
[1747618381567,0.01266137,105070.0,105060.0,0.93971593]
[1747618381927,0.01266137,105070.0,105060.0,1.00971593]
[1747618382094,0.03169539,105070.0,105060.0,0.79427593]
[1747618382296,0.21252831,105070.0,105060.0,0.43904513]
[1747618382501,0.02217902,105070.0,105060.0,0.6674849]
[1747618382700,0.00314464,105070.0,105060.0,0.8049943]
[1747618382943,0.02217829,105070.0,105060.0,0.8049943]
[1747618383184,0.00314464,105070.0,105060.0,0.8049943]
[1747618383362,0.00314464,105070.0,105060.0,0.81953515]
[1747618385350,0.23671012,105090.0,105080.0,0.59807974]
[1747618385650,0.2462255,105090.0,105080.0,0.59807974]
[1747618385839,0.04006097,105090.0,105080.0,0.59807974]
[1747618386311,0.04957662,105090.0,105080.0,0.59479205]
[1747618386521,0.04006097,105090.0,105080.0,0.61749205]
[1747618386733,0.0305455,105090.0,105080.0,0.61749205]
[1747618387203,0.04006097,105090.0,105080.0,0.61749205]
[1747618387414,0.0315455,105090.0,105080.0,0.73174143]
[1747618387837,0.003,105090.0,105080.0,0.94702143]
[1747618388279,0.003,105090.0,105080.0,0.96156228]
[1747618388492,0.25573409,105110.0,105100.0,0.57853809]
[1747618388714,0.19559949,105090.0,105080.0,0.15306169]
[1747618388933,0.19559949,105090.0,105080.0,0.03605229]
[1747618389159,0.19559949,105090.0,105080.0,0.03405229]
[1747618389396,0.19559949,105090.0,105080.0,0.01129041]
[1747618389615,0.19559949,105090.0,105080.0,0.01529041]
[1747618389862,0.23469949,105090.0,105080.0,0.08529041]
[1747618390062,0.23469949,105090.0,105080.0,0.08129041]
[1747618390260,0.23569949,105090.0,105080.0,0.08729041]
[1747618390825,0.23569949,105090.0,105080.0,0.09210129]
[1747618391222,0.54868889,105090.0,105080.0,0.08181088]
[1747618391453,0.54868889,105090.0,105080.0,0.01181088]
[1747618391624,0.62404329,105090.0,105080.0,0.01181088]
[1747618391836,1.03496329,105090.0,105080.0,0.01481088]
[1747618392038,1.03396329,105090.0,105080.0,0.003]
[1747618392245,0.22878358,105070.0,105060.0,0.00926697]
[1747618392445,0.24738358,105070.0,105060.0,0.00926697]
[1747618393150,0.34469298,105070.0,105060.0,0.00926697]
[1747618393394,0.34469298,105070.0,105060.0,0.01508471]
[1747618394505,0.34469298,105070.0,105060.0,0.00781774]
[1747618394709,0.34469298,105070.0,105060.0,0.00881774]
[1747618394931,0.20938358,105070.0,105060.0,0.00881774]
[1747618395356,0.42454358,105070.0,105060.0,0.01281774]
[1747618395575,0.46384358,105070.0,105060.0,0.01281774]
[1747618396595,0.46384358,105070.0,105060.0,0.00881774]
[1747618396800,0.46384358,105070.0,105060.0,0.01181774]
[1747618396960,0.46384358,105070.0,105060.0,0.01808471]
[1747618398021,0.42454358,105070.0,105060.0,0.01808471]
[1747618398669,0.44434358,105070.0,105060.0,0.01808471]
[1747618398894,0.56145298,105070.0,105060.0,0.01808471]
[1747618401575,0.52185298,105070.0,105060.0,0.01808471]
[1747618401817,0.42454358,105070.0,105060.0,0.01808471]
[1747618402164,0.42454358,105070.0,105060.0,0.06510308]
[1747618402396,0.23419374,105070.0,105060.0,0.62402448]
[1747618402618,0.01903374,105070.0,105060.0,0.62402448]
[1747618402825,0.22841777,105070.0,105060.0,0.63354248]
[1747618403184,0.22841777,105070.0,105060.0,0.62627551]
[1747618403396,0.03806848,105070.0,105060.0,0.62627487]
[1747618403596,0.01903374,105070.0,105060.0,0.62627487]
[1747618403773,0.02855084,105070.0,105060.0,0.62627487]
[1747618403976,0.21890013,105070.0,105060.0,0.60723932]
[1747618404182,0.2284175,105070.0,105060.0,0.59772141]
[1747618404532,0.03806812,105070.0,105060.0,0.60723914]
[1747618404662,0.02855084,105070.0,105060.0,0.60723914]
[1747618404867,0.0380683,105070.0,105060.0,0.60723932]
[1747618405072,0.20938394,105070.0,105060.0,0.35081774]
[1747618405297,0.20938394,105070.0,105060.0,0.01081774]
[1747618405473,0.22958394,105070.0,105060.0,0.01081774]
[1747618405968,0.22958394,105070.0,105060.0,0.02051166]
[1747618406179,0.34659334,105070.0,105060.0,0.02051166]
[1747618406379,0.56179334,105070.0,105060.0,0.02051166]
[1747618406769,0.7791251,105070.0,105060.0,0.02051166]
[1747618407189,0.56179334,105070.0,105060.0,0.02051166]
[1747618408865,0.56179334,105070.0,105060.0,0.01081774]
[1747618410276,0.56179334,105070.0,105060.0,0.005]
[1747618413424,0.90179334,105070.0,105060.0,0.005]
[1747618413635,1.2831422,105070.0,105060.0,0.005]
[1747618414248,0.91633419,105070.0,105060.0,0.005]
[1747618414495,0.91633419,105070.0,105060.0,0.002]
[1747618414708,0.91733419,105070.0,105060.0,0.002]
[1747618416982,0.92133419,105070.0,105060.0,0.002]
[1747618419380,1.13629419,105070.0,105060.0,0.002]
[1747618420756,1.5031022,105070.0,105060.0,0.002]
[1747618420981,1.5131022,105070.0,105060.0,0.002]
[1747618421829,1.5231022,105070.0,105060.0,0.002]
[1747618423171,0.58137419,105070.0,105060.0,0.002]
[1747618423402,0.79229419,105070.0,105060.0,0.002]
[1747618423673,1.13729419,105070.0,105060.0,0.003]
[1747618424117,1.13729419,105070.0,105060.0,0.004]
[1747618424341,1.14229419,105070.0,105060.0,0.004]
[1747618425691,1.14225419,105070.0,105060.0,0.004]
[1747618427765,1.35967158,105070.0,105060.0,0.004]
[1747618429635,1.14479158,105070.0,105060.0,0.004]
[1747618429777,0.87293334,105070.0,105060.0,0.004]
[1747618430170,0.74773334,105070.0,105060.0,0.004]
[1747618430947,0.73661967,105070.0,105060.0,0.002]
[1747618431213,0.73961967,105070.0,105060.0,0.003]
[1747618431409,0.74361967,105070.0,105060.0,0.003]
[1747618431585,0.31357967,105070.0,105060.0,0.003]
[1747618431785,0.52845967,105070.0,105060.0,0.003]
[1747618432335,0.31357967,105070.0,105060.0,0.0401]
[1747618432541,0.52845967,105070.0,105060.0,0.0401]
[1747618432970,0.52545967,105070.0,105060.0,0.0401]
[1747618433105,0.52145967,105070.0,105060.0,0.0391]
[1747618433324,0.42515027,105070.0,105060.0,0.04898549]
[1747618433531,0.42515027,105070.0,105060.0,0.33374375]
[1747618433736,0.42515027,105070.0,105060.0,0.68326175]
[1747618433938,0.21588,105070.0,105060.0,0.81286409]
[1747618434139,0.001,105070.0,105060.0,0.81286409]
[1747618434398,0.24338522,105090.0,105080.0,0.21887974]
[1747618434583,0.0380606,105090.0,105080.0,0.25557974]
[1747618434800,0.00951447,105100.0,105090.0,0.54934373]
[1747618434942,0.21883836,105100.0,105090.0,0.57792853]
[1747618435144,0.21883836,105100.0,105090.0,0.56841306]
[1747618435343,0.20932416,105100.0,105090.0,0.38391497]
[1747618435569,0.20932416,105100.0,105090.0,0.39343053]
[1747618435822,0.00951402,105100.0,105090.0,0.56467389]
[1747618436046,0.002,105110.0,105100.0,0.20932416]
[1747618436215,0.02117101,105110.0,105100.0,0.22835265]
[1747618436549,0.02117101,105110.0,105100.0,0.26645265]
[1747618436735,0.02117101,105110.0,105100.0,0.27226762]
[1747618437175,0.00214461,105110.0,105100.0,0.36957702]
[1747618437439,0.00214461,105110.0,105100.0,0.71357702]
[1747618438073,0.00214461,105110.0,105100.0,0.73011787]
[1747618438281,0.03053427,105130.0,105120.0,0.58658416]
[1747618438487,0.2307688,105130.0,105120.0,0.59609664]
[1747618438729,0.2307688,105130.0,105120.0,0.58658416]
[1747618439143,0.2307688,105130.0,105120.0,0.58658425]
[1747618439359,0.2307688,105130.0,105120.0,0.58658434]
[1747618439817,0.00248194,105130.0,105120.0,0.70291852]
[1747618440031,0.00248194,105130.0,105120.0,0.72559766]
[1747618440243,0.00248194,105130.0,105120.0,0.72759766]
[1747618440882,0.01199324,105130.0,105120.0,0.72659766]
[1747618441108,0.00248194,105130.0,105120.0,0.72559766]
[1747618441566,0.00248194,105130.0,105120.0,0.77650189]
[1747618441784,0.02101917,105150.0,105140.0,0.25485493]
[1747618441785,0.03052912,105150.0,105140.0,0.25485493]
[1747618441987,0.03067362,105150.0,105140.0,0.25485493]
[1747618442218,0.2303883,105150.0,105140.0,0.08550033]
[1747618442435,0.21136913,105150.0,105140.0,0.0361]
[1747618442673,0.21136913,105150.0,105140.0,0.04561103]
[1747618442883,0.21136913,105150.0,105140.0,0.05512197]
[1747618443102,0.21136913,105150.0,105140.0,0.05865341]
[1747618443312,0.21136913,105150.0,105140.0,0.06816444]
[1747618443529,0.21136913,105150.0,105140.0,0.05865341]
[1747618443737,0.21136913,105150.0,105140.0,0.07767529]
[1747618443948,0.03067344,105150.0,105140.0,0.2879191]
[1747618444132,0.0021445,105150.0,105140.0,0.3852285]
[1747618444386,0.0021445,105150.0,105140.0,0.5997085]
[1747618444818,0.0021445,105150.0,105140.0,0.62307188]
[1747618445246,0.0021445,105150.0,105140.0,0.63335035]
[1747618445473,0.0021445,105150.0,105140.0,0.96452782]
[1747618445688,0.0021445,105150.0,105140.0,1.01392815]
[1747618445900,0.0021445,105150.0,105140.0,1.01692815]
[1747618446111,0.0021445,105150.0,105140.0,0.9908912]
[1747618446286,0.0021445,105150.0,105140.0,0.97152782]
[1747618446900,0.0021445,105150.0,105140.0,0.97393735]
[1747618447728,0.00205695,105150.0,105140.0,0.97393735]
[1747618447936,0.01156644,105150.0,105140.0,0.75945735]
[1747618448146,0.2112814,105150.0,105140.0,0.50713969]
[1747618448336,0.2112814,105150.0,105140.0,0.03373029]
[1747618448889,0.00205695,105150.0,105140.0,0.38579453]
[1747618449320,0.01156644,105150.0,105140.0,0.37034271]
[1747618449740,0.02107594,105150.0,105140.0,0.37034271]
[1747618450142,0.01156635,105150.0,105140.0,0.37034271]
[1747618450345,0.01156644,105150.0,105140.0,0.37034271]
[1747618450802,0.02107612,105150.0,105140.0,0.37034271]
[1747618450961,0.01156644,105150.0,105140.0,0.37034271]
[1747618451913,0.00205695,105150.0,105140.0,0.37034271]
[1747618452071,0.00205695,105150.0,105140.0,0.38324896]
[1747618452310,0.01156644,105150.0,105140.0,0.38324896]
[1747618452506,0.00205695,105150.0,105140.0,0.38324896]
[1747618452716,0.00205695,105150.0,105140.0,0.72324896]
[1747618452929,0.00205695,105150.0,105140.0,0.73778981]
[1747618455189,0.00205695,105150.0,105140.0,0.74025553]
[1747618458124,0.02852595,105160.0,105150.0,0.25573404]
[1747618458321,0.0115076,105170.0,105160.0,0.59571323]
[1747618458532,0.02101538,105170.0,105160.0,0.59571323]
[1747618458739,0.03052334,105170.0,105160.0,0.59571323]
[1747618458967,0.04003157,105170.0,105160.0,0.59571323]
[1747618459169,0.04003148,105170.0,105160.0,0.59571323]
[1747618459531,0.04003148,105170.0,105160.0,0.60049986]
[1747618459714,0.04003148,105170.0,105160.0,0.60041731]
[1747618460397,0.04003211,105170.0,105160.0,0.59664366]
[1747618460783,0.02101574,105170.0,105160.0,0.39653043]
[1747618460985,0.03052397,105170.0,105160.0,0.39653043]
[1747618461366,0.02101574,105170.0,105160.0,0.40603965]
[1747618461574,0.22069217,105170.0,105160.0,0.40603974]
[1747618461780,0.19016829,105170.0,105160.0,0.40603974]
[1747618462203,0.20918475,105170.0,105160.0,0.39653043]
[1747618462371,0.20918439,105170.0,105160.0,0.41619221]
[1747618462861,0.21869217,105170.0,105160.0,0.41619221]
[1747618463227,0.22820049,105170.0,105160.0,0.41619221]
[1747618463448,0.21869271,105170.0,105160.0,0.37969221]
[1747618464029,0.17307763,105170.0,105160.0,0.37969221]
[1747618464330,0.1540609,105170.0,105160.0,0.56987859]
[1747618464538,0.16356886,105170.0,105160.0,0.61668781]
[1747618464861,0.19975743,105180.0,105170.0,0.34]
[1747618465060,0.21877171,105180.0,105170.0,0.44681781]
[1747618465197,0.20926448,105180.0,105170.0,0.44681781]
[1747618465402,0.21877171,105180.0,105170.0,0.44681781]
[1747618465605,0.21877171,105180.0,105170.0,0.4373094]
[1747618465813,0.20926512,105180.0,105170.0,0.34573512]
[1747618467514,0.20926512,105180.0,105170.0,0.34973512]
[1747618469759,0.19975789,105180.0,105170.0,0.34973512]
[1747618471252,0.22575056,105180.0,105170.0,0.00973512]
[1747618471455,0.19975761,105180.0,105170.0,0.00973512]
[1747618471707,0.17315834,105180.0,105170.0,0.00973512]
[1747618471916,0.12943961,105180.0,105170.0,0.00973512]
[1747618472060,0.13894675,105180.0,105170.0,0.01924344]
[1747618472367,0.13894675,105180.0,105170.0,0.21892014]
[1747618472565,0.13894675,105180.0,105170.0,0.25422014]
[1747618472773,0.12943952,105180.0,105170.0,0.25422005]
[1747618472975,0.11042578,105180.0,105170.0,0.2637281]
[1747618473347,0.0178393,105190.0,105180.0,0.60437896]
[1747618473566,0.01798377,105190.0,105180.0,1.00437213]
[1747618473769,0.01152733,105190.0,105180.0,1.02891298]
[1747618473978,0.21110727,105210.0,105200.0,0.35901122]
[1747618474194,0.21110727,105210.0,105200.0,0.4373094]
[1747618474405,0.22061179,105210.0,105200.0,0.4373094]
[1747618474612,0.2301164,105210.0,105200.0,0.44304452]
[1747618474859,0.21110781,105210.0,105200.0,0.44304452]
[1747618475075,0.21110781,105210.0,105200.0,0.35572129]
[1747618476345,0.21110781,105210.0,105200.0,0.35672129]
[1747618476827,0.21110781,105210.0,105200.0,0.35772129]
[1747618477032,0.21110691,105210.0,105200.0,0.36722699]
[1747618477240,0.21110691,105210.0,105200.0,0.35772129]
[1747618477367,0.23962065,105210.0,105200.0,0.35772129]
[1747618477574,0.23011667,105210.0,105200.0,0.35772129]
[1747618477987,0.22061125,105210.0,105200.0,0.46453639]
[1747618478393,0.23011586,105210.0,105200.0,0.46453639]
[1747618478599,0.22061125,105210.0,105200.0,0.46453639]
[1747618479025,0.002,105210.0,105200.0,0.70836104]
[1747618479231,0.20160006,105210.0,105200.0,0.77836113]
[1747618479602,0.19209599,105210.0,105200.0,0.79767131]
[1747618479802,0.23011335,105210.0,105200.0,0.54434087]
[1747618479927,0.23011326,105210.0,105200.0,0.54434087]
[1747618480131,0.22060865,105210.0,105200.0,0.55384657]
[1747618480383,0.22060865,105210.0,105200.0,0.56335218]
[1747618480621,0.19209599,105210.0,105200.0,0.75346624]
[1747618480817,0.002,105210.0,105200.0,0.8235175]
[1747618482086,0.002,105210.0,105200.0,1.0371575]
[1747618482659,0.002,105210.0,105200.0,1.01784732]
[1747618482863,0.20910422,105210.0,105200.0,0.99883691]
[1747618483064,0.20910413,105210.0,105200.0,1.01784732]
[1747618483263,0.18653752,105220.0,105200.0,1.01784732]
[1747618483466,0.00950398,105210.0,105200.0,1.0273523]
[1747618483666,0.00950398,105210.0,105200.0,1.01784732]
[1747618483868,0.00950398,105210.0,105200.0,1.0273523]
[1747618484214,0.17703309,105220.0,105210.0,0.04410479]
[1747618484411,0.19604042,105220.0,105210.0,0.0346]
[1747618484607,0.19604042,105220.0,105200.0,0.98874171]
[1747618484608,0.00950416,105210.0,105200.0,0.98874171]
[1747618484822,0.18653725,105220.0,105200.0,1.00694171]
[1747618485022,0.18653725,105220.0,105200.0,1.00594108]
[1747618485189,0.19604114,105220.0,105200.0,0.99643574]
[1747618485383,0.19604114,105220.0,105200.0,1.00694081]
[1747618485613,0.19604114,105220.0,105200.0,1.00594126]
[1747618485982,0.00950407,105210.0,105200.0,1.01544624]
[1747618486182,0.00950407,105210.0,105200.0,1.01644624]
[1747618486398,0.19604114,105220.0,105200.0,1.02595113]
[1747618486595,0.19604114,105220.0,105210.0,0.00950479]
[1747618486799,0.00950398,105210.0,105200.0,1.0154457]
[1747618487002,0.00950398,105210.0,105200.0,1.0164457]
[1747618487202,0.16752992,105220.0,105210.0,0.19009599]
[1747618487421,0.21116425,105230.0,105210.0,0.59460928]
[1747618487630,0.20180552,105230.0,105220.0,0.53958173]
[1747618487852,0.00214444,105230.0,105220.0,0.71504221]
[1747618488123,0.01164662,105230.0,105220.0,0.73041078]
[1747618488759,0.21120893,105230.0,105220.0,0.90752417]
[1747618488981,0.22071237,105230.0,105220.0,0.45567797]
[1747618489218,0.19791866,105230.0,105220.0,0.46518186]
[1747618489423,0.19791866,105230.0,105220.0,0.45567797]
[1747618489630,0.19791866,105230.0,105220.0,0.45867797]
[1747618489841,0.18841576,105230.0,105220.0,0.45854841]
[1747618490068,0.19791857,105230.0,105220.0,0.46805221]
[1747618490280,0.19791857,105230.0,105220.0,0.47273221]
[1747618490512,0.19791857,105230.0,105220.0,0.48223601]
[1747618490744,0.19791857,105230.0,105220.0,0.49173972]
[1747618491000,0.19791857,105230.0,105220.0,0.46322832]
[1747618491369,0.20742156,105230.0,105220.0,0.47273221]
[1747618491715,0.19791902,105230.0,105220.0,0.46322832]
[1747618491931,0.22431639,105230.0,105220.0,0.36591892]
[1747618492139,0.32162579,105230.0,105220.0,0.01173512]
[1747618492559,0.00950479,105210.0,105200.0,0.21404894]
[1747618492767,0.21863008,105200.0,105190.0,0.20914441]
[1747618493004,0.21865032,105190.0,105180.0,0.20567958]
[1747618493201,0.20914399,105190.0,105180.0,0.33151041]
[1747618493414,0.20914399,105190.0,105180.0,0.32200354]
[1747618493623,0.20914399,105190.0,105180.0,0.33151041]
[1747618494043,0.2091439,105190.0,105180.0,0.33751041]
[1747618494288,0.2091439,105190.0,105180.0,0.11898321]
[1747618494456,0.22750071,105190.0,105180.0,0.02167381]
[1747618494882,0.22750071,105190.0,105180.0,0.36167381]
[1747618495309,0.22750071,105190.0,105180.0,0.35567381]
[1747618495930,0.22850071,105190.0,105180.0,0.36788499]
[1747618496195,0.22850071,105190.0,105180.0,0.36288499]
[1747618497088,0.21899456,105190.0,105180.0,0.36288499]
[1747618498426,0.20059456,105190.0,105180.0,0.36288499]
[1747618499316,0.20059456,105190.0,105180.0,0.35567381]
[1747618500178,0.21779456,105190.0,105180.0,0.35567381]
[1747618500833,0.23479456,105190.0,105180.0,0.35567381]
[1747618501512,0.21010071,105190.0,105180.0,0.54582402]
[1747618501735,0.21960722,105190.0,105180.0,0.36518132]
[1747618502214,0.029518,105190.0,105180.0,0.57434572]
[1747618502433,0.02001185,105190.0,105180.0,0.58385259]
[1747618502664,0.02951809,105190.0,105180.0,0.57434572]
[1747618502914,0.02951809,105190.0,105180.0,0.56483876]
[1747618503137,0.22915674,105190.0,105180.0,0.56483876]
[1747618503569,0.21965095,105190.0,105180.0,0.35567381]
[1747618503782,0.21014489,105190.0,105180.0,0.35567381]
[1747618504479,0.24614489,105190.0,105180.0,0.35567381]
[1747618504693,0.24614489,105190.0,105180.0,0.01567381]
[1747618504911,0.34345429,105190.0,105180.0,0.01567381]
[1747618507121,0.55673429,105190.0,105180.0,0.01567381]
[1747618507942,0.34345429,105190.0,105180.0,0.01567381]
[1747618508160,0.55669429,105190.0,105180.0,0.01567381]
[1747618512940,0.55665429,105190.0,105180.0,0.01567381]
[1747618515358,0.34345429,105190.0,105180.0,0.01567381]
[1747618515618,2.09655168,105190.0,105180.0,0.00214444]
[1747618516043,2.09756168,105190.0,105180.0,0.00214444]
[1747618516493,1.45338429,105190.0,105180.0,0.00214444]
[1747618516707,1.88014429,105190.0,105180.0,0.00214444]
[1747618517114,1.45238429,105190.0,105180.0,0.00214444]
[1747618517362,1.87870429,105190.0,105180.0,0.00214444]
[1747618517574,1.88370429,105190.0,105180.0,0.00314444]
[1747618517776,1.88870429,105190.0,105180.0,0.00314444]
[1747618519969,2.10612168,105190.0,105180.0,0.00314444]
[1747618521286,2.46066253,105190.0,105180.0,0.00314444]
[1747618524224,1.77226253,105190.0,105180.0,0.00314444]
[1747618524583,1.76218253,105190.0,105180.0,0.00314444]
[1747618525035,1.76214253,105190.0,105180.0,0.00314444]
[1747618525213,1.75714253,105190.0,105180.0,0.00214444]
[1747618525657,1.75214253,105190.0,105180.0,0.00214444]
[1747618525971,1.75914253,105190.0,105180.0,0.00314444]
[1747618526682,1.76614253,105190.0,105180.0,0.00414444]
[1747618527118,1.55310253,105190.0,105180.0,0.00414444]
[1747618527330,1.76614253,105190.0,105180.0,0.00414444]
[1747618532181,1.78614253,105190.0,105180.0,0.00414444]
[1747618532295,1.57310253,105190.0,105180.0,0.00414444]
[1747618532496,1.78606253,105190.0,105180.0,0.00414444]
[1747618534844,2.00347992,105190.0,105180.0,0.00414444]
[1747618535054,1.78606253,105190.0,105180.0,0.00414444]
[1747618535515,1.78602253,105190.0,105180.0,0.00414444]
[1747618536384,1.55314253,105190.0,105180.0,0.00414444]
[1747618536609,1.77602253,105190.0,105180.0,0.00414444]
[1747618541197,1.55314253,105190.0,105180.0,0.00414444]